Cogmind - Beta 15 @@@ ROGUE MODE // 2025.09.17 @ 17:56:48 Player: Nuclear Winter Man Result: Destroyed by G-47 Trooper with Particle Gun Performance ------------- Evolutions (1) 500 Regions Visited (5) 1000 Robots Destroyed (32) 160 Value Destroyed (812) 812 Prototype IDs (25) 500 Alien Tech Used (0) 0 Bonus (291) 291 TOTAL SCORE: 3263 Bonus ------- Aligned with FarCom 300 Friendly Fire -9 Cogmind --------- Core Integrity 0/400 Matter 274/300 Energy 160/160 System Corruption 0% Temperature Cool (9) Movement Treading (145) Location -8/Mines Parts ------- > --- POWER (1) -------- Light Nuclear Core > --- PROPULSION (4) --- Advanced Treads Advanced Treads Aluminum Leg Improved Titanium Leg > --- UTILITY (2) ------ Improved Cooling System Large Storage Unit > --- WEAPON (2) ------- Heavy Laser Flak Gun > --- INVENTORY (15) --- Light Angular Momentum Engine Advanced Heat Sink Large Storage Unit Large Storage Unit Experimental Sensor Array Modified TNC Salvage Targeting Computer Advanced Targeting Computer ECM Suite Medium Armor Plating Shield Generator Medium Laser Advanced Assault Cannon Mini Grenade Launcher Peak State ------------ > --- POWER ------------ Light Nuclear Core > --- PROPULSION ------- Advanced Treads Advanced Treads Aluminum Leg Improved Titanium Leg > --- UTILITY ---------- Improved Cooling System Large Storage Unit > --- WEAPON ----------- Heavy Laser Flak Gun > --- INVENTORY -------- Light Angular Momentum Engine Advanced Heat Sink Large Storage Unit Large Storage Unit Experimental Sensor Array Modified TNC Salvage Targeting Computer Advanced Targeting Computer ECM Suite Medium Armor Plating Shield Generator Medium Laser Advanced Assault Cannon Mini Grenade Launcher [Rating: 31] Favorites ----------- Power Ion Engine Engine Ion Engine Power Core Light Nuclear Core Propulsion Advanced Treads Treads Advanced Treads Leg Aluminum Leg Flight Unit Flight Unit Utility Large Storage Unit Device Improved Cooling System Storage Large Storage Unit Weapon Light Assault Rifle Energy Gun Medium Laser Ballistic Gun Light Assault Rifle Build | -11 -10 -9 -9 -9 -8 ------- Run | Yrd Mat Mat Min Exi Min Slots Evolved 2 | . . 2 . . . Power . | . . . . . . Propulsion 2 | . . 2 . . . Utility . | . . . . . . Weapon . | . . . . . . Parts Attached 40 | 6 3 16 8 1 6 Power 7 | 1 1 4 . . 1 Engine 5 | 1 . 4 . . . Core 2 | . 1 . . . 1 Reactor . | . . . . . . Propulsion 18 | 2 . 10 3 . 3 Treads 6 | 2 . . 3 . 1 Leg 8 | . . 6 . . 2 Wheel . | . . . . . . Hover . | . . . . . . Flight 4 | . . 4 . . . Utility 6 | 1 2 . 2 1 . Device 2 | . 1 . 1 . . Storage 4 | 1 1 . 1 1 . Processor . | . . . . . . Hackware . | . . . . . . Protection . | . . . . . . Artifact . | . . . . . . Weapon 9 | 2 . 2 3 . 2 Energy Gun 4 | 1 . . 2 . 1 Energy Cannon . | . . . . . . Ballistic Gun 5 | 1 . 2 1 . 1 Ballistic Cannon . | . . . . . . Launcher . | . . . . . . Special Weapon . | . . . . . . Impact Weapon . | . . . . . . Slashing Weapon . | . . . . . . Piercing Weapon . | . . . . . . Special Melee Weapon . | . . . . . . Unidentified Prototypes . | . . . . . . Parts Lost 15 | . 1 2 8 . 4 Power 3 | . 1 . 2 . . Propulsion 7 | . . 1 4 . 2 Utility . | . . . . . . Weapon 5 | . . 1 2 . 2 Highest Loss Streak 8 | . 1 1 8 . 3 To Critical Strikes . | . . . . . . Average Backups 13 | 2 10 14 14 14 14 Power . | . 1 2 . . . Propulsion 2 | 1 4 4 1 2 1 Utility 7 | . 1 4 9 8 9 Weapon 3 | . 2 3 3 4 3 Tool/Special . | . . . . . . Unused Backups 22 | . . 2 8 1 11 Power 1 | . . . . . 1 Propulsion 1 | . . 1 . . . Utility 14 | . . . 5 1 8 Weapon 6 | . . 1 3 . 2 Tool/Special . | . . . . . . Average Slot Usage (%) 88 | . 99 79 88 88 89 Engine 10 | . 12 9 10 11 7 Treads 28 | . 28 11 30 33 33 Leg 3 | . . 15 3 . 2 Device 11 | . 13 11 10 11 11 Storage 11 | . 14 11 11 11 11 Energy Gun 9 | . 14 1 9 11 8 Ballistic Gun 12 | . 14 17 11 11 11 Peak Build Rating 31 | 6 10 17 21 21 31 Average Rating 16 | 5 7 10 18 20 23 On Entrance 12 | . 6 10 17 21 21 Naked Turns . | . . . . . . Heaviest Build 35 | 13 29 34 34 30 35 Greatest Support 88 | 40 40 49 66 66 88 Greatest Overweight (x) 6 | 3 . 6 . . . Average Overweight (x) . | . . . . . . Largest Inventory Capacity 15 | 8 15 15 15 15 15 Average Capacity 14 | 7 12 15 15 15 15 Most Carried 15 | 4 15 15 15 15 15 Average Carried 13 | 2 10 14 14 14 14 Final Capacity 15 | 8 15 15 15 15 15 Final Carried 15 | 4 15 15 15 15 14 Class Distribution -------------------- 96% | Mutant 3% | Scavenger-Mutant Dominant Class ---------------- Mutant | -10/Materials Mutant | -9/Materials Mutant | -9/Mines Mutant | -9/Exiles Mutant | -8/Mines Resources | -11 -10 -9 -9 -9 -8 ----------- Run | Yrd Mat Mat Min Exi Min Matter Collected 986 | 235 86 208 301 10 146 Remotely . | . . . . . . Salvage Created 1008 | . 370 247 155 . 236 Parts 54 | . 26 14 7 . 7 Haulers Intercepted 1 | . 1 . . . . Recyclers Shooed 1 | . . 1 . . . Parts Field Recycled . | . . . . . . Retrieved Matter . | . . . . . . Parts Self-Destructed . | . . . . . . Prevented . | . . . . . . Kills | -11 -10 -9 -9 -9 -8 ------- Run | Yrd Mat Mat Min Exi Min Combat Hostiles Destroyed 30 | . 10 7 8 . 5 Guns 30 | . 10 7 8 . 5 Classes Destroyed 9 | . 5 2 2 . . Worker 2 | . 2 . . . . Hauler 1 | . 1 . . . . Watcher 2 | . 2 . . . . Swarmer 12 | . 6 3 3 . . Grunt 11 | . 4 2 . . 5 Duelist 1 | . . 1 . . . Sentry 1 | . . 1 . . . Demolisher 2 | . . . 2 . . Assembled 3 | . . . 3 . . Best Kill Streak 6 | . 6 3 3 . 2 Combat Bots Only 3 | . 3 3 3 . 2 Max Kills in Single Turn 1 | . 1 1 1 . 1 Gunslinging . | . . . . . . Exploded . | . . . . . . Melee . | . . . . . . Uniques/NPCs Destroyed . | . . . . . . Combat | -11 -10 -9 -9 -9 -8 -------- Run | Yrd Mat Mat Min Exi Min Hostile Shots Fired 209 | . 53 30 46 . 80 Missed 49 | . 14 4 10 . 21 Hits 160 | . 39 26 36 . 59 Melee 5 | . . 5 . . . Projectile 155 | . 39 21 36 . 59 AOE 18 | . . . 18 . . Critical Strikes 4 | . . 1 . . 3 Damage Taken 2762 | . 382 396 965 . 1019 Core 438 | . 31 25 269 . 113 Absorbed by Shields . | . . . . . . Core Remaining (%) 93 | 100 87 . . . . Volleys Fired 134 | . 40 26 28 . 40 Largest 2 | . 2 2 2 . 2 Hottest 97 | . 70 70 70 . 97 Shots Fired 242 | . 80 42 56 . 64 Gun 242 | . 80 42 56 . 64 Cannon . | . . . . . . Launcher . | . . . . . . Special . | . . . . . . Kinetic 173 | . 40 40 49 . 44 Thermal 69 | . 40 2 7 . 20 Explosive . | . . . . . . Electromagnetic . | . . . . . . Robot Hit Streak 15 | . 12 15 4 . 8 Robot Miss Streak 6 | . 4 4 6 . 3 Penetration Max . | . . . . . . Secondary Targets 4 | . 2 . 1 . 1 Max Gunslinging Chain 1 | . 1 . 1 . 1 Shots Hit Robots 157 | . 46 29 29 . 53 Core Hits 92 | . 23 13 17 . 39 Critical Kills . | . . . . . . Critical Parts Destroyed . | . . . . . . Critical Strikes 7 | . 6 . 1 . . Burn 7 | . 6 . 1 . . Melee Attacks . | . . . . . . Impact . | . . . . . . Slashing . | . . . . . . Piercing . | . . . . . . Sneak Attacks . | . . . . . . Combat Hostiles . | . . . . . . Follow-up Attacks . | . . . . . . Damage Inflicted 2100 | . 512 345 430 . 813 Guns 2093 | . 512 338 430 . 813 Cannons . | . . . . . . Explosions . | . . . . . . Melee . | . . . . . . Ramming 7 | . . 7 . . . Kinetic 1439 | . 164 313 369 . 593 Thermal 654 | . 348 25 61 . 220 Explosive . | . . . . . . Electromagnetic . | . . . . . . Impact . | . . . . . . Slashing . | . . . . . . Piercing . | . . . . . . Highest Corruption . | . . . . . . Average Corruption . | . . . . . . Corruption Purged . | . . . . . . Corruption Blocked . | . . . . . . Overload Shots . | . . . . . . Overflow Damage . | . . . . . . Projectiles . | . . . . . . Explosions . | . . . . . . Melee . | . . . . . . Knockbacks 1 | . . 1 . . . Impact 1 | . . 1 . . . Kinetic . | . . . . . . Secondary . | . . . . . . Self-Inflicted Damage . | . . . . . . Shots . | . . . . . . Rammed . | . . . . . . Targets Rammed 1 | . . 1 . . . Kicked 1 | . . 1 . . . Crushed . | . . . . . . Highest Temperature 169 | . 169 35 50 . 12 Average Temperature 36 | . 54 6 8 . 6 Received Heat Transfer 821 | . 123 93 20 . 585 Siege Activations . | . . . . . . Martial Activations . | . . . . . . Shielding Activations . | . . . . . . Robots Disrupted . | . . . . . . Combat Hostiles . | . . . . . . Robots Corrupted . | . . . . . . Combat Hostiles . | . . . . . . Parts Fried . | . . . . . . Impact Corruptions . | . . . . . . Robots Melted . | . . . . . . Combat Hostiles . | . . . . . . Parts Melted 9 | . 7 2 . . . Heat Transferred 2442 | . 1480 74 259 . 629 Parts Sabotaged . | . . . . . . Parts Stolen . | . . . . . . Parts Stripped . | . . . . . . Power Chain Reactions . | . . . . . . Alert | -11 -10 -9 -9 -9 -8 ------- Run | Yrd Mat Mat Min Exi Min Maximum Alert Level . | . . . . . . Low Security (%) 100 | 100 100 100 100 . 100 Level 1 . | . . . . . . Level 2 . | . . . . . . Level 3 . | . . . . . . Level 4 . | . . . . . . Level 5 . | . . . . . . High Security . | . . . . . . Max Security . | . . . . . . Peak Influence 130 | . 130 51 62 . 60 Initial 21 | . . 21 10 . . Average 19 | . 62 12 5 . 15 Influence Increases 788 | . 294 179 120 . 195 Destroy 0b10 Robot/C 540 | . 200 140 100 . 100 Destroy 0b10 Robot/NC 25 | . 25 . . . . Destroy Leader 116 | . 46 30 20 . 20 Successful Hack 15 | . 8 7 . . . Destroy Structure 2 | . . 2 . . . Lose Combat Pursuer 90 | . 15 . . . 75 Influence Decreases 751 | . 242 203 148 . 158 Entered New Map 49 | . . 31 18 . . Time Decay 622 | . 232 162 110 . 118 Lost Part 80 | . 10 10 20 . 40 Squads Dispatched 3 | . 1 1 1 . . Investigation 3 | . 1 1 1 . . Extermination . | . . . . . . Reinforcement . | . . . . . . Assault . | . . . . . . Garrison . | . . . . . . Intercept . | . . . . . . Searches Triggered . | . . . . . . Construction Impeded . | . . . . . . Haulers Reinforced . | . . . . . . Active Scanning Responses . | . . . . . . Cargo Convoy Interrupts . | . . . . . . Stealth | -11 -10 -9 -9 -9 -8 --------- Run | Yrd Mat Mat Min Exi Min Distress Signals 2 | . 2 . . . . Communications Jammed . | . . . . . . Distress Signals . | . . . . . . Times Spotted 68 | . 16 13 27 . 12 Peak Tracking Total 8 | . 5 4 8 . 3 Tactical Retreats 7 | . 1 . 2 . 4 Traps | -11 -10 -9 -9 -9 -8 ------- Run | Yrd Mat Mat Min Exi Min Traps Triggered . | . . . . . . Indirectly . | . . . . . . Trap Hack Attempts . | . . . . . . Triggered . | . . . . . . Disarmed . | . . . . . . Reprogrammed . | . . . . . . Reused . | . . . . . . Traps Extracted . | . . . . . . Installed . | . . . . . . Triggered . | . . . . . . Machines | -11 -10 -9 -9 -9 -8 ---------- Run | Yrd Mat Mat Min Exi Min Machines Disabled . | . . . . . . Max in Single Turn . | . . . . . . Machines Repaired . | . . . . . . Machines Dismantled . | . . . . . . Machines Sabotaged . | . . . . . . Overloaded Fab Kills . | . . . . . . Hacking | -11 -10 -9 -9 -9 -8 --------- Run | Yrd Mat Mat Min Exi Min Machines Accessed 10 | . 3 1 1 5 . Terminals 4 | . 3 1 . . . Fabricators . | . . . . . . Repair Stations . | . . . . . . Recycling Units . | . . . . . . Scanalyzers . | . . . . . . Garrison Access . | . . . . . . Total Hacks 46 | . 14 2 1 29 . Successful 37 | . 6 1 1 29 . Failed 9 | . 8 1 . . . Catastrophic 2 | . 1 1 . . . Database Lockouts . | . . . . . . Manual 3 | . . 2 . 1 . Terminals 16 | . 14 2 . . . Fabricators . | . . . . . . Repair Stations . | . . . . . . Recycling Units . | . . . . . . Scanalyzers . | . . . . . . Garrison Access . | . . . . . . Terminal Hacks 37 | . 6 1 1 29 . Record 28 | . . . . 28 . Part Schematic 1 | . . 1 . . . Prototype ID Bank 1 | . 1 . . . . Open Door 1 | . . . 1 . . Alert Level 1 | . 1 . . . . Locate Traps 1 | . 1 . . . . Dispatch Records 1 | . 1 . . . . Hauler Manifests 1 | . 1 . . . . Zone Layout 1 | . 1 . . . . Proto ID Catalog 1 | . . . . 1 . Fabricator Hacks . | . . . . . . Repair Station Hacks . | . . . . . . Recycling Unit Hacks . | . . . . . . Scanalyzer . | . . . . . . Garrison Access Hacks . | . . . . . . Unauthorized Hacks . | . . . . . . Terminals . | . . . . . . Fabricators . | . . . . . . Repair Stations . | . . . . . . Recycling Units . | . . . . . . Scanalyzers . | . . . . . . Garrison Access . | . . . . . . Data Cores Recovered . | . . . . . . Used . | . . . . . . Hacking Detections 3 | . 2 1 . . . Full Trace Events 2 | . 1 1 . . . Feedback Events . | . . . . . . Feedback Blocked . | . . . . . . Robot Schematics Acquired . | . . . . . . Robots Built . | . . . . . . Authchips . | . . . . . . Time . | . . . . . . Total Robot Build Rating . | . . . . . . Part Schematics Acquired 1 | . . 1 . . . Parts Built . | . . . . . . Authchips . | . . . . . . Time . | . . . . . . Total Part Build Rating . | . . . . . . Parts Repaired . | . . . . . . Time . | . . . . . . Parts Recycled . | . . . . . . Recycled Matter . | . . . . . . Retrieved Matter . | . . . . . . Retrieved Components . | . . . . . . Parts Scanalyzed . | . . . . . . Part Schematics Acquired . | . . . . . . Parts Damaged . | . . . . . . Bothacking | -11 -10 -9 -9 -9 -8 ------------ Run | Yrd Mat Mat Min Exi Min Used RIF Installer . | . . . . . . Robots Hacked . | . . . . . . Non-combat . | . . . . . . Combat . | . . . . . . Robot Hacks Applied . | . . . . . . Relay Couplers Released . | . . . . . . Fabnet Peak Effective % . | . . . . . . Robots Rewired . | . . . . . . Allies Hacked . | . . . . . . Hacks Repelled . | . . . . . . Allies | -11 -10 -9 -9 -9 -8 -------- Run | Yrd Mat Mat Min Exi Min Total Allies 3 | . . . 3 . . Largest Group 3 | . . . 3 . . Highest-Rated Group 40 | . . . 40 . . Highest-Rated Ally 16 | . . . 16 . . Total Orders . | . . . . . . Ally Attacks 33 | . . . 33 . . Total Damage 382 | . . . 382 . . Kills 8 | . . . 8 . . Allies Corrupted . | . . . . . . Allies Melted . | . . . . . . Intel | -11 -10 -9 -9 -9 -8 ------- Run | Yrd Mat Mat Min Exi Min Active Infowar (turns) 1729 | . 565 564 600 . . Terrain 1729 | . 565 564 600 . . Robot Analysis Total . | . . . . . . Derelict Logs Recovered 2 | . . . 2 . . Drone Launches . | . . . . . . Drone Recoveries . | . . . . . . Exploration | -11 -10 -9 -9 -9 -8 ------------- Run | Yrd Mat Mat Min Exi Min Turns Passed 4096 | 141 577 564 1168 1130 516 Spaces Moved 2366 | 81 266 263 731 773 252 Core 7 | 7 . . . . . Treads 2203 | 74 266 135 703 773 252 Legs 154 | . . 126 28 . . Wheels . | . . . . . . Hover . | . . . . . . Flight 2 | . . 2 . . . Fastest Speed 50 | 50 160 111 120 145 145 Average Speed 149 | 159 160 165 144 145 145 Slowest Speed 560 | 200 160 560 145 145 145 Overloaded Moves . | . . . . . . Propulsion Burnouts . | . . . . . . Robots Hopped . | . . . . . . Potential Cave-ins . | . . . . . . Cave-ins Triggered . | . . . . . . Exploration Rate (%) 50 | 6 35 27 99 94 43 Regions Visited 5 Branch Regions 3 Pre-discovered Areas 1 | . . . . 1 . Known Exits Taken . | . . . . . . Unknown Exits Taken 5 | 1 1 1 1 1 . Scrap Searched 2 | . . . 2 . . Spaces Dug . | . . . . . . Terrain Destroyed . | . . . . . . Melee . | . . . . . . Projectile . | . . . . . . AOE . | . . . . . . Terrain Rammed . | . . . . . . Walls Destroyed . | . . . . . . Machines Disabled . | . . . . . . Actions | -11 -10 -9 -9 -9 -8 --------- Run | Yrd Mat Mat Min Exi Min Total 2731 | 91 346 361 807 783 343 Wait 97 | . 24 24 8 . 41 Move 2362 | 80 265 263 730 772 252 Hop . | . . . . . . Pick Up 46 | 5 12 8 17 1 3 Fast Attach 16 | 5 2 7 1 . 1 Attach 17 | 1 . 4 8 . 4 Detach 5 | . . 3 2 . . Swap 14 | . 1 10 1 1 1 Drop 33 | . 2 16 12 2 1 Fire 134 | . 40 26 28 . 40 Melee . | . . . . . . Ram . | . . . . . . Kick . | . . . . . . Crush . | . . . . . . Escape Stasis . | . . . . . . Rewire 7 | . . . . 7 . Trap . | . . . . . . Miscellaneous . | . . . . . . Route ------- -11/Scrapyard -10/Materials (discovered 2 exits: *Mat / [*Min]) -9/Materials -9/Mines (discovered 3 exits: *Mat x2 / *Exi) -9/Exiles (discovered 2 exits: [*Min x2]) -8/Mines History --------- Turn | Location | Event 49 | -11/Scrapyard | Discovered new exit (range 12) 142 | -11/Scrapyard | Entered Materials 308 | -10/Materials | Build established: Mutant 523 | -10/Materials | Discovered new exit (range 8) 695 | -10/Materials | Discovered new exit (range 16) 719 | -10/Materials | Entered another Materials area 719 | -9/Materials | Evolved 2 slots: Propulsion x2 1276 | -9/Materials | Discovered new exit (range 6) 1283 | -9/Materials | Entered Mines 1286 | -9/Mines | Assisted by bots powering up and referring to "LRC-V3" 1296 | -9/Mines | Assembled infested the area 1301 | -9/Mines | Assisted by a Guerilla fighting off Assembled 1372 | -9/Mines | Core integrity fell below 50% 1381 | -9/Mines | Lost 4 allies 1421 | -9/Mines | Lost 8 parts (2p4n2w) 1622 | -9/Mines | Found a damaged Exp. Sensor Array with a note attached 1625 | -9/Mines | Found Prototype Device 1720 | -9/Mines | Discovered new exit (range 10) 1860 | -9/Mines | Identified exit to Materials 1861 | -9/Mines | Learned location of 1 exit from Materials 1865 | -9/Mines | Met a Derelict shopkeep closing up shop 2444 | -9/Mines | Deemed a non-threat by the Exiles lab entrance 2446 | -9/Mines | Discovered new exit (range 5) 2451 | -9/Mines | Entered Exiles 2473 | -9/Exiles | Discovered new exit (range 15) 2518 | -9/Exiles | Met 8R-AWN 2550 | -9/Exiles | Met EX-HEX 2656 | -9/Exiles | Met EX-DEC 2684 | -9/Exiles | Visited The Gauntlet 2898 | -9/Exiles | Learned location of Zion (-6) 2963 | -9/Exiles | Discovered new exit (range 12) 3083 | -9/Exiles | Met EX-BIN 3292 | -9/Exiles | Aligned with FarCom system 3294 | -9/Exiles | Given EX-Vault access code 3327 | -9/Exiles | Opened EX-Vault 3348 | -9/Exiles | Found Modified TNC 3375 | -9/Exiles | Warned to stay clear of 0b10 Research branches 3581 | -9/Exiles | Left Exiles lab with Modified TNC 3581 | -9/Exiles | Entered Mines 3810 | -8/Mines | Core integrity fell below 20% 3961 | -8/Mines | Lost 3 parts (1n2w) 4097 | -8/Mines | Destroyed by G-47 Trooper with Particle Gun Last Messages --------------- 03930_ Lgt. Assault Rifle destroyed. 03932_ G-50 Soldier heat damages Lgt. Angular Momentum Engine. 03934_ G-50 Soldier heat short circuits Hvy. Laser. 03938_ R-06 Scavenger collects Aluminum Leg. 03939_ G-47 Trooper destroyed. 03944_ R-06 Scavenger collects Imp. Heat Sink. 03947_ Dropped Ion Engine. 03948_ Acquired Aluminum Leg. 03949_ Acquired 39 matter. 03949_ R-06 Scavenger collects Ion Engine. 04013_ Adv. Treads destroyed. 04018_ G-47 Trooper destroyed. 04022_ Acquired 42 matter. 04054_ G-50 Soldier destroyed. 04056_ Acquired 44 matter. 04059_ Acquired Hvy. Laser. 04066_ Acquired Adv. Heat Sink. 04078_ K-01 Serf collects debris. 04093_ Critical hit (Burn: +37). 04094_ K-01 Serf collects debris. Map ----- +----------------------------------------------------+ | #???####???# ##??????????? | | #??## ##?## #### ##?????????? | | #???# ### #### #?????????? | | ### #??## #?????????? | | ##?# #### """ """ ##????????? | | #??# """ ######## """ #????????? | | ##??# """ ##??????## """ #?????? | | ##???###### ####????????# ##?????? | | ##????????## ##???????????## ###??????? | | #????????## #?????????????## ## ##????????? | | #####????# ##??????????????##### #?????????? | | #????# ##???????????????????# #?????????? | | #### #????## g ##????????????????????# #?????????? | | ???# #?????## ##?????????????????????# #?????????? | | ???# ######## #??????????????????????? #?????????? | | ???# #??????????????????????? #?????????? | | ???######%##########?????????????????? ?????????? | | ??????### #### #??????????????????##?????????? | | ??????# #?????????????????????????????? | | ??????# """ #?????????????????????????????? | | ??????# ##### """ ####?????####?????????????????? | | ??????# ????# """ #????## ##????????????????? | | ??????# ????# ##g#????# #????????????????? | | ??????# ????# ## ###### k #????????????????? | | ??????# ????######## g ##???????????????? | | ??????# ???????????#####@### ###?????????????? | | ??????# ???????????????# #?## #####?????????? | | ??????# ???????????????# #??# ##????????? | | ??????# ???????????????## ##### #######??? | | ??????# ????????????#### #?## | | ??????# ??????????### #??# $ | | ??????# ????????### % ##??# ############? | | ???????????????## ##???## ##???????????? | | ???????????????# ######?????## #????????????? | | ??????????????## ##???????????# #????????????? | | ??????????????#$ #????????????# #????????????? | | ??????????????# #????????????# #????????????? | | ??????????????## #???????????? #????????????? | | ???????????????### ##????????????####????????????? | | ?????????????????##??????????????????????????????? | | ?????????????????????????????????????????????????? | | ?????????????????????????????????????????????????? | | ?????????????????????????????????????????????????? | | ?????????????????????????????????????????????????? | | ?????????????????????????????????????????????????? | | ?????????????????????????????????????????????????? | | ?????????????????????????????????????????????????? | | ?????????????????????????????????????????????????? | | ?????????????????????????????????????????????????? | | ?????????????????????????????????????????????????? | +----------------------------------------------------+ Best States ------------- Heat Dissipation 55 Energy Generation 14 Energy Capacity 265 Matter Stores 300 Matter Capacity 300 Sight Range 16 Terrain Scan Range 14 Terrain Scan Density 10 Evasion (%) 55 Recoil Reduction 4 Item Schematics ----------------- Lgt. Treads | -9/Materials | Hacked Robot Schematics ------------------ None Fabricated ------------ Nothing Repaired ---------- Nothing Alien Tech Used ----------------- None Achievements -------------- None Challenges ------------ None Game ------ Seed CombatFieldthrustBallwheel Manual? 0 Play Time 00:50:24 Cumulative 18.4 hours Start 2025.09.15 @ 01:29:05 End 2025.09.17 @ 17:56:48 Sessions 10 Manual Loads 0 Difficulty Rogue Special Mode None Game No. 27 Rogue 27 Adventurer 0 Explorer 0 Win Type - Total 0 Types 0/0/0/0/0/0/0/0/0/0 Lore% 17 Gallery% 20 Achievement% 21 Wizard Run 0 Options --------- Layout 1 ASCII 0 Keyboard 1 Movement Vi Keybinds 0 Fullscreen 0 Font 18/CogNarrow Map View 64x42 Zoom Use 0% Tactical HUD 1 Map Filters NONE Filters NONE Steam X RUN: 89547e00-5c8b-4917-901a-0226b9b59d71